bitfinex/quotes_SOLUSD_20260201
["timestamp","ask_amount","ask_price","bid_price","bid_amount"]
[1769987552455,4.49754793,99.254,99.185,4.41822956]
[1769987552662,4.49754793,99.254,99.21,25.63837876]
[1769987552842,15.55879787,99.23,99.163,4.41822956]
[1769987553044,4.49754793,99.239,99.163,4.41822956]
[1769987553045,15.55879787,99.22,99.18,15.55879787]
[1769987553273,4.49754793,99.239,99.19,15.55879787]
[1769987553446,15.55879787,99.22,99.18,15.55879787]
[1769987553643,15.55879787,99.21,99.142,4.41822956]
[1769987553863,15.55879787,99.21,99.17,15.55879787]
[1769987554064,4.49754793,99.23,99.15,15.55879787]
[1769987554365,15.55879787,99.16,99.12,15.55879787]
[1769987554544,10.08135654,99.193,99.13,15.55879787]
[1769987554749,15.55879787,99.18,99.13,15.55879787]
[1769987555340,4.27527085,99.224,99.113,4.41822956]
[1769987555341,4.49754793,99.283,99.174,4.41822956]
[1769987555552,15.65879787,99.32,99.25,15.55879787]
[1769987555878,15.55879787,99.3,99.25,15.55879787]
[1769987556159,15.55879787,99.31,99.241,4.41822956]
[1769987556366,0.1,99.32,99.28,15.55879787]
[1769987556566,0.1,99.32,99.223,4.27527085]
[1769987556567,0.1,99.32,99.3,15.55879787]
[1769987556773,0.1,99.32,99.31,15.55879787]
[1769987557068,25.62523636,99.34,99.3,15.55879787]
[1769987557256,15.55879787,99.32,99.233,4.27527085]
[1769987557467,4.49754793,99.319,99.244,4.41822956]
[1769987557639,4.49754793,99.319,99.25,15.55879787]
[1769987557845,15.55879787,99.31,99.26,15.55879787]
[1769987558044,15.55879787,99.3,99.241,4.34036022]
[1769987558358,15.55879787,99.29,99.25,15.55879787]
[1769987558661,4.12545396,99.317,99.253,10.07524962]
[1769987558863,15.55879787,99.27,99.218,10.07877808]
[1769987559066,15.55879787,99.25,99.2,15.55879787]
[1769987559260,15.55879787,99.26,99.21,15.55879787]
[1769987559457,50.75674611,99.359,99.201,35.28190239]
[1769987559458,4.27527085,99.335,99.224,4.34036022]
[1769987559656,4.12545396,99.357,99.291,4.34036022]
[1769987559843,4.12545396,99.357,99.201,36.28995674]
[1769987559844,15.55879787,99.33,99.28,15.55879787]
[1769987560050,25.62523636,99.34,99.3,15.55879787]
[1769987560278,4.12545396,99.339,99.268,4.34036022]
[1769987560566,15.55879787,99.33,99.29,15.55879787]
[1769987560742,14.19209512,99.338,99.28,15.55879787]
[1769987560945,15.55879787,99.3,99.251,25.18857468]
[1769987561143,14.19209512,99.338,99.29,10.07145953]
[1769987561365,15.55879787,99.39,99.33,15.55879787]
[1769987561586,15.21385162,99.632,99.29,10.07145953]
[1769987561587,15.55879787,99.44,99.371,4.34036022]
[1769987561742,35.18012222,99.488,99.42,15.55879787]
[1769987561946,21.8,99.6,99.353,4.27527085]
[1769987561947,15.55879787,99.48,99.43,15.55879787]
[1769987562245,10.05069031,99.496,99.45,15.55879787]
[1769987562572,15.55879787,99.46,99.392,5.2072031]
[1769987562858,15.55879787,99.44,99.392,5.2072031]
[1769987563241,35.19037995,99.459,99.392,5.2072031]
[1769987563445,15.55879787,99.46,99.41,15.55879787]
[1769987563671,4.12545396,99.546,99.451,4.34036022]
[1769987563854,4.12545396,99.526,99.451,4.34036022]
[1769987564047,15.55879787,99.55,99.5,15.55879787]
[1769987564363,4.12545396,99.595,99.53,15.55879787]
[1769987564665,28.0,99.611,99.453,4.27527085]
[1769987564666,10.0463135,99.539,99.471,4.34036022]
[1769987564868,50.20382753,99.594,99.49,15.55879787]
[1769987564869,10.04556061,99.547,99.49,15.55879787]
[1769987565076,4.12545396,99.609,99.541,4.34036022]
[1769987565367,4.12545396,99.629,99.55,15.55879787]
[1769987565674,15.55879787,99.62,99.56,15.55879787]
[1769987565979,15.55879787,99.57,99.492,4.12933631]
[1769987566275,4.08941533,99.651,99.561,4.12933631]
[1769987566582,4.08941533,99.651,99.523,50.97270087]
[1769987566583,6.3294992,99.708,99.64,15.55879787]
[1769987566767,6.3294992,99.708,99.643,4.12933631]
[1769987566959,39.19191462,99.708,99.622,4.12933631]
[1769987567273,15.55879787,99.73,99.68,15.55879787]
[1769987567444,15.55879787,99.73,99.669,4.12933631]
[1769987567647,15.55879787,99.7,99.65,15.55879787]
[1769987567872,4.08941533,99.717,99.643,4.12933631]
[1769987568175,4.08941533,99.717,99.62,15.55879787]
[1769987568368,4.08941533,99.694,99.62,15.55879787]
[1769987568570,85.52999372,99.747,99.587,4.12933631]
[1769987568571,4.08941533,99.67,99.587,4.12933631]
[1769987568762,15.55879787,99.63,99.58,15.55879787]
[1769987568963,15.55879787,99.61,99.56,15.55879787]
[1769987569155,15.55879787,99.62,99.58,15.55879787]
[1769987569349,4.27527085,99.666,99.6,15.55879787]
[1769987569350,15.55879787,99.64,99.6,15.55879787]
[1769987569549,15.55879787,99.64,99.59,15.55879787]
[1769987569750,4.08941533,99.689,99.63,15.55879787]
[1769987569950,0.3143727,99.747,99.681,4.12933631]
[1769987570459,4.08941533,99.853,99.741,4.12933631]
[1769987570651,4.08941533,99.877,99.81,15.55879787]
[1769987570854,15.55879787,99.83,99.745,4.12933631]
[1769987571172,4.08941533,99.833,99.747,4.12933631]
[1769987571468,4.08941533,99.833,99.709,5.36086188]
[1769987571469,15.55879787,99.8,99.749,4.12933631]
[1769987571670,15.55879787,99.8,99.75,15.55879787]
[1769987571967,15.55879787,99.8,99.679,50.35164117]
[1769987571968,15.55879787,99.76,99.71,15.55879787]
[1769987572166,4.08941533,99.789,99.72,15.55879787]
[1769987572372,15.55879787,99.76,99.703,4.12933631]
[1769987572571,4.08941533,99.791,99.72,15.55879787]
[1769987572876,15.55879787,99.77,99.72,15.55879787]
[1769987573050,4.08941533,99.861,99.74,15.55879787]
[1769987573248,15.55879787,99.81,99.76,15.55879787]
[1769987573463,15.55879787,99.83,99.78,15.55879787]
[1769987573969,35.04520831,99.871,99.8,15.55879787]
[1769987574175,15.55879787,99.86,99.81,15.55879787]
[1769987574571,14.10031136,99.892,99.82,15.55879787]
[1769987574769,15.55879787,99.87,99.82,15.55879787]
[1769987574958,1e-08,99.93,99.862,4.41365945]
[1769987575157,1e-08,99.93,99.864,4.12933631]
[1769987575357,1e-08,99.93,99.91,15.55879787]
[1769987575572,15.55879787,99.93,99.89,15.55879787]
[1769987575780,4.08941533,99.963,99.92,15.55879787]
[1769987575960,15.55879787,99.98,99.93,15.55879787]
[1769987576156,4.08941533,99.989,99.93,15.55879787]
[1769987576459,15.55879787,99.94,99.844,4.12933631]
[1769987576651,4.08941533,99.962,99.871,4.12933631]
[1769987576866,15.55879787,99.92,99.871,4.12933631]
[1769987577065,4.08941533,99.962,99.871,4.12933631]
[1769987577464,4.08941533,99.915,99.843,4.12933631]
[1769987577779,15.55879787,99.9,99.85,15.55879787]
[1769987577951,4.08941533,99.915,99.843,4.12933631]
[1769987578150,4.08941533,99.915,99.814,4.12933631]
[1769987578392,4.08941533,99.915,99.85,15.55879787]
[1769987578679,25.02982093,99.881,99.818,4.12933631]
[1769987578875,4.08941533,99.893,99.8,15.55879787]
[1769987579173,4.27527085,99.894,99.8,15.55879787]
[1769987579174,4.08941533,99.88,99.8,15.55879787]
[1769987579550,15.55879787,99.86,99.81,15.55879787]
[1769987579754,15.55879787,99.86,99.709,1.00291849]
[1769987579755,10.01031061,99.897,99.84,15.55879787]
[1769987580056,15.55879787,99.87,99.82,15.55879787]
[1769987580259,10.01031061,99.897,99.85,15.55879787]
[1769987580454,15.55879787,99.93,99.842,4.12933631]
[1769987580654,15.55879787,99.93,99.799,5.36086188]
[1769987580655,15.55879787,99.86,99.82,4.12933631]
[1769987580962,10.00879173,99.913,99.851,4.12933631]
[1769987581159,4.08941533,99.965,99.9,15.55879787]
[1769987581360,9.99900009,100.01,99.95,19.68813418]
[1769987581562,9.99900009,100.01,99.849,5.36086188]
[1769987581563,4.08941533,99.979,99.904,5.64518502]
[1769987581771,15.55879787,99.95,99.888,4.12933631]
[1769987581968,15.55879787,99.93,99.87,15.55879787]
[1769987582152,4.08941533,99.952,99.864,4.12933631]
[1769987582355,15.55879787,99.95,99.864,4.12933631]
[1769987582579,34.99650033,100.01,99.931,4.12933631]
[1769987582756,4.08941533,100.06,99.98,15.55879787]
[1769987582954,15.55879787,100.01,99.952,4.12933631]
[1769987583159,15.55879787,99.99,99.937,4.12933631]
[1769987583366,15.55879787,100.01,99.952,4.12933631]
[1769987583570,4.08941533,100.02,99.941,4.12933631]
[1769987583860,15.55879787,99.95,99.891,4.12933631]
[1769987584080,15.55879787,99.92,99.868,4.12933631]
[1769987584383,15.55879787,99.9,99.846,10.01542375]
[1769987584575,4.08941533,99.934,99.846,10.01542375]
[1769987584771,50.28376515,99.998,99.796,27.86]
[1769987584772,4.08941533,99.958,99.851,10.01492223]
[1769987585085,15.55879787,99.92,99.87,15.55879787]
[1769987585296,4.08941533,99.912,99.83,15.55879787]
[1769987585579,15.55879787,99.95,99.89,15.55879787]
[1769987585782,4.08941533,99.954,99.87,15.55879787]
[1769987586085,15.55879787,99.88,99.68,50.76487178]
[1769987586382,4.08941533,99.909,99.82,15.55879787]
[1769987586565,4.08941533,99.909,99.821,4.12933631]
[1769987586762,15.55879787,99.87,99.791,4.12933631]
[1769987587092,4.08941533,100.0,99.861,4.12933631]
[1769987587397,15.55879787,99.92,99.87,15.55879787]
[1769987587590,15.55879787,99.93,99.88,15.55879787]
[1769987587761,15.55879787,99.89,99.836,4.27030698]
[1769987587962,4.49243095,99.908,99.831,10.01691454]
[1769987588184,15.55879787,99.88,99.832,4.27030698]
[1769987588402,4.49243095,99.908,99.85,15.55879787]
[1769987588670,10.0141199,99.859,99.81,29.84807944]
[1769987588864,10.0141199,99.859,98.866,103.9]
[1769987588865,15.55879787,99.82,99.77,15.55879787]
[1769987589066,4.49243095,99.834,99.749,4.27030698]
[1769987589266,15.55879787,99.8,99.75,29.85414991]
[1769987589476,15.55879787,99.81,99.761,4.27030698]
[1769987589680,15.55879787,99.79,99.74,10.02598174]
[1769987589882,15.55879787,99.79,99.737,4.27030698]
[1769987589883,15.55879787,99.83,99.78,15.55879787]
[1769987590084,15.55879787,99.87,99.82,15.55879787]
[1769987590586,15.55879787,99.92,99.86,15.55879787]
[1769987590780,15.55879787,99.94,99.89,15.55879787]
[1769987590971,15.55879787,99.93,99.88,15.55879787]
[1769987591168,15.55879787,99.94,99.89,15.55879787]
[1769987591370,4.49243095,99.995,99.93,15.55879787]
[1769987591570,15.55879787,99.99,99.922,4.27030698]
[1769987591767,4.49243095,99.929,99.862,10.01381907]
[1769987592090,15.55879787,99.92,99.862,14.28412605]
[1769987592274,15.55879787,99.91,99.862,14.28412605]
[1769987592471,15.55879787,99.93,99.87,15.55879787]
[1769987592677,112.80540866,100.02,99.882,10.01181394]
[1769987592678,15.55879787,99.99,99.882,10.01181394]
[1769987592876,19.81903108,100.01,99.96,15.32660013]
[1769987593097,9.99831382,100.02,99.886,0.28432314]
[1769987593411,15.32660013,99.97,99.91,15.32660013]
[1769987593692,15.32660013,99.97,99.882,35.04134879]
[1769987593693,4.49243095,99.959,99.854,4.27030698]
[1769987593994,15.32660013,99.91,99.873,10.01263802]
[1769987594167,15.32660013,99.92,99.87,15.32660013]
[1769987594374,15.32660013,99.92,99.861,4.27030698]
[1769987594375,4.49243095,99.927,99.831,4.27030698]
[1769987594570,15.32660013,99.85,99.75,27.82]
[1769987594786,4.49243095,99.949,99.83,15.32660013]
[1769987594987,4.49243095,99.949,99.821,4.27030698]
[1769987594988,4.49243095,99.895,99.821,4.27030698]
[1769987595272,15.32660013,99.9,99.85,15.32660013]
[1769987595476,4.49243095,99.918,99.83,19.59690711]
[1769987595680,15.32660013,99.84,99.751,4.27030698]
[1769987595868,15.32660013,99.83,99.78,15.32660013]
[1769987596073,15.32660013,99.86,99.816,10.01843391]
[1769987596299,15.32660013,99.84,99.79,15.32660013]
[1769987596472,4.49243095,99.819,99.781,4.27030698]
[1769987596674,15.32660013,99.79,99.781,4.27030698]
[1769987596897,15.32660013,99.79,99.737,10.0263559]
[1769987597098,4.49243095,99.827,99.77,15.32660013]
[1769987597277,15.32660013,99.86,99.743,85.21894314]
[1769987597475,15.32660013,99.86,99.744,1.00256657]
[1769987597672,15.32660013,99.86,99.81,15.32660013]
[1769987597894,15.32660013,99.82,99.743,85.21894314]
[1769987598078,50.0781455,99.982,99.811,4.27030698]
[1769987598281,35.00665126,99.981,99.86,15.32660013]
[1769987598484,15.32660013,99.88,99.785,4.27527085]
[1769987598686,4.27527085,99.978,99.85,15.32660013]
[1769987598886,15.32660013,99.87,99.82,15.32660013]
[1769987599195,15.32660013,99.86,99.81,15.32660013]
[1769987599389,4.27527085,99.904,99.79,15.32660013]
[1769987599782,15.32660013,99.8,99.75,15.32660013]
[1769987600092,4.27527085,99.845,99.73,19.59690711]
[1769987600296,15.32660013,99.74,99.698,10.0302536]
[1769987600475,4.49243095,99.767,99.69,15.32660013]
[1769987600680,15.32660013,99.78,99.73,15.32660013]
[1769987600916,4.49243095,99.825,99.76,15.32660013]
[1769987601080,4.49243095,99.825,99.731,35.09440394]
[1769987601081,15.32660013,99.85,99.81,15.32660013]
[1769987601397,35.03082712,99.912,99.84,15.32660013]
[1769987601398,4.49243095,99.911,99.84,15.32660013]
[1769987601600,15.32660013,99.87,99.794,4.27030698]
[1769987601775,15.32660013,99.86,99.81,15.32660013]
[1769987601980,15.32660013,99.82,99.77,4.27030698]
[1769987602275,4.27527085,99.874,99.76,15.32660013]
[1769987602276,15.32660013,99.81,99.76,15.32660013]
[1769987602479,4.49243095,99.856,99.8,15.32660013]
[1769987602677,15.32660013,99.86,99.81,15.32660013]
[1769987602872,4.49243095,99.904,99.84,15.32660013]
[1769987603091,4.49243095,99.904,99.86,15.32660013]
[1769987603277,30.4,99.982,99.88,15.32660013]
[1769987603488,30.4,99.98,99.92,4.27030698]
[1769987603794,15.32660013,100.02,99.96,15.32660013]
[1769987603993,0.1,100.03,99.921,0.14216157]
[1769987604191,30.4,100.01,99.92,4.27030698]
[1769987604492,9.99800039,100.02,99.92,4.27030698]
[1769987604673,15.33122081,100.01,99.96,15.33122081]
[1769987604876,15.43122081,100.03,99.97,15.33122081]
[1769987605081,15.33122081,99.99,99.94,15.33122081]
[1769987605377,4.04959156,100.0,99.92,4.27030698]
[1769987605576,15.33122081,99.95,99.92,4.27030698]
[1769987605795,35.08988941,100.03,99.941,4.27030698]
[1769987605990,0.1,100.03,100.0,15.33122081]
[1769987606181,15.33122081,100.01,99.922,4.27030698]
[1769987606377,15.33122081,99.94,99.898,4.27030698]
[1769987606589,85.07468817,100.03,99.898,4.27030698]
[1769987606590,15.33122081,99.93,99.905,10.0094643]
[1769987606797,15.33122081,99.94,99.899,10.01011021]
[1769987607003,4.04959156,99.998,99.901,0.14216157]
[1769987607203,0.1,100.03,99.99,15.33122081]
[1769987607507,4.14859156,100.14,100.02,4.27030698]
[1769987607814,15.33122081,100.06,99.998,4.27030698]
[1769987607996,4.14859156,100.12,100.05,15.33122081]
[1769987608189,14.13461113,100.14,100.06,15.33122081]
[1769987608397,15.33122081,100.1,100.05,19.60152779]
[1769987608590,15.33122081,100.06,99.943,4.41246855]
[1769987608799,15.33122081,99.98,99.943,4.27030698]
[1769987609003,15.33122081,99.96,99.92,4.27030698]
[1769987609307,15.33122081,99.96,99.853,27.82]
[1769987609308,4.14859156,100.02,99.917,4.27030698]
[1769987609508,15.33122081,100.0,99.943,10.0056273]
[1769987609812,15.33122081,100.08,99.994,4.27030698]
[1769987610003,15.33122081,100.04,99.994,4.27030698]
[1769987610200,4.14859156,100.08,100.0,15.33122081]
[1769987610401,4.14859156,100.14,100.05,15.33122081]
[1769987610588,3.85778278,100.15,100.09,15.33122081]
[1769987610788,15.33122081,100.11,100.07,4.27030698]
[1769987611008,15.33122081,100.1,100.05,15.33122081]
[1769987611310,15.33122081,100.13,100.07,29.59388244]
[1769987611511,15.33122081,100.14,100.08,4.27030698]
[1769987612010,0.1,100.14,100.11,15.33122081]
[1769987612309,3.85778278,100.15,100.1,4.27030698]
[1769987612310,4.24859156,100.22,100.1,4.27030698]
[1769987612513,15.33122081,100.19,100.14,15.33122081]
[1769987612812,1e-08,100.22,100.19,4.27030698]
[1769987613022,5.21559282,100.31,100.22,4.27030698]
[1769987613023,9.9690958,100.31,100.22,4.27030698]
[1769987613314,6.27177359,100.36,100.27,19.60152779]
[1769987613512,15.33122081,100.33,100.27,4.27030698]
[1769987613811,4.14859156,100.3,100.21,4.27030698]
[1769987614016,15.33122081,100.26,100.2,19.60152779]
[1769987614312,4.14859156,100.33,100.21,5.36086188]
[1769987614490,62.97245043,100.35,100.26,4.27030698]
[1769987614491,0.3143727,100.35,100.26,4.27030698]
[1769987614693,15.33122081,100.29,100.23,19.60152779]
[1769987614892,0.3143727,100.35,100.28,19.60152779]
[1769987615098,0.5,100.32,100.3,15.33122081]
[1769987615315,15.33122081,100.42,100.33,4.27030698]
[1769987615498,15.33122081,100.43,100.38,15.33122081]
[1769987615703,25.28558348,100.46,100.4,15.33122081]
[1769987615894,15.33122081,100.45,100.39,4.27030698]
[1769987616093,9.95207472,100.49,100.39,4.27030698]
[1769987616295,10.74044201,100.51,100.43,4.27030698]
[1769987616519,9.94944058,100.51,100.46,15.33122081]
[1769987616718,15.33122081,100.52,100.47,15.33122081]
[1769987616897,15.33122081,100.5,100.44,4.27030698]
[1769987617100,15.33122081,100.48,100.41,4.27030698]
[1769987617305,4.45982053,100.53,100.42,4.27030698]
[1769987617612,15.33122081,100.53,100.47,15.33122081]
[1769987617810,4.60160193,100.56,100.47,15.33122081]
[1769987617811,15.64559351,100.56,100.47,4.09569383]
[1769987618117,39.40705323,100.56,100.47,4.09569383]
[1769987618317,0.3143727,100.56,100.51,15.33122081]
[1769987618611,3.47332497,100.59,100.51,8.37096468]
[1769987618826,3.47332497,100.59,100.53,9.94727941]
[1769987618996,15.33122081,100.56,100.49,4.09569383]
[1769987619196,15.33122081,100.52,100.46,19.42691464]
[1769987619391,4.28722923,100.53,100.41,4.09569383]
[1769987619599,15.33122081,100.42,100.35,4.09569383]
[1769987619796,15.33122081,100.45,100.39,19.42691464]
[1769987619994,15.33122081,100.43,100.38,4.09569383]
[1769987620215,15.33122081,100.39,100.35,4.09569383]
[1769987620416,4.27527085,100.44,100.33,4.09569383]
[1769987620417,15.33122081,100.37,100.33,4.09569383]
[1769987620718,15.33122081,100.44,100.37,4.09569383]
[1769987620926,15.33122081,100.44,100.29,49.52742313]
[1769987620927,15.33122081,100.38,100.28,4.09569383]
[1769987621093,4.27527085,100.39,100.28,4.09569383]
[1769987621299,15.33122081,100.33,100.29,4.09569383]
[1769987621599,4.27527085,100.37,100.26,4.09569383]
[1769987621600,15.33122081,100.31,100.26,4.09569383]
[1769987621794,15.33122081,100.27,100.23,4.09569383]
[1769987622097,15.33122081,100.33,100.26,19.42691464]
[1769987622308,15.33122081,100.38,100.32,4.09569383]
[1769987622512,19.60649166,100.39,100.32,15.33122081]
[1769987622700,15.33122081,100.38,100.32,15.33122081]
[1769987622904,15.33122081,100.36,100.31,4.09569383]
[1769987623097,8.56250008,100.43,100.3,4.09569383]
[1769987623298,15.33122081,100.35,100.3,4.09569383]
[1769987623815,15.33122081,100.37,100.31,19.42691464]
[1769987624115,183.49750206,100.46,100.36,5.36086188]
[1769987624116,15.33122081,100.42,100.36,5.36086188]
[1769987624324,15.33122081,100.44,100.38,19.42691464]
[1769987624617,19.61845004,100.39,100.29,4.09569383]
[1769987624807,15.33122081,100.35,100.29,19.42691464]
[1769987625117,15.33122081,100.35,100.31,4.09569383]
[1769987625309,15.33122081,100.37,100.3,19.42691464]
[1769987625612,15.33122081,100.37,100.32,4.09569383]
[1769987625914,15.33122081,100.35,100.32,4.09569383]
[1769987626101,88.88106359,100.41,100.3,19.50755077]
[1769987626295,15.33122081,100.34,100.28,4.17632996]
[1769987626492,39.08522653,100.41,100.32,4.17632996]
[1769987626698,15.33122081,100.35,100.3,4.17632996]
[1769987626914,9.9611515,100.39,100.3,4.17632996]
[1769987627219,14.18807319,100.41,100.33,19.50755077]
[1769987627404,4.22814059,100.42,100.3,14.28852399]
[1769987627593,4.22814059,100.45,100.35,19.50755077]
[1769987627794,15.33122081,100.38,100.32,9.53719184]
[1769987628119,15.33122081,100.38,100.31,4.41743242]
[1769987628120,15.33122081,100.39,100.33,19.50755077]
[1769987628416,15.33122081,100.45,100.38,15.33122081]
[1769987628605,15.33122081,100.39,100.33,4.17632996]
[1769987628804,15.33122081,100.39,100.34,4.17632996]
[1769987629006,15.33122081,100.35,100.27,14.14885278]
[1769987629316,15.33122081,100.31,100.26,4.17632996]
[1769987629495,4.27527085,100.35,100.23,4.17632996]
[1769987629496,15.33122081,100.28,100.23,4.17632996]
[1769987629695,15.33122081,100.28,100.23,14.1528077]
[1769987629918,15.33122081,100.28,100.23,14.15297258]
[1769987630228,4.27527085,100.31,100.23,4.17632996]
[1769987630818,8.50341144,100.31,100.2,9.97954945]
[1769987631118,4.27527085,100.36,100.27,4.17632996]
[1769987631317,4.22814059,100.38,100.27,4.17632996]
[1769987631318,39.09564407,100.38,100.3,4.17632996]
[1769987631522,39.09564407,100.38,100.29,15.33122081]
[1769987631523,14.18433334,100.44,100.35,4.17632996]
[1769987631708,9.95421063,100.46,100.37,4.17632996]
[1769987632027,49.68843747,100.54,100.37,4.17632996]
[1769987632028,9.94786592,100.53,100.43,0.28432314]
[1769987632223,4.22814059,100.55,100.46,4.17632996]
[1769987632528,24.85583615,100.58,100.49,19.50755077]
[1769987632529,15.33122081,100.56,100.49,19.50755077]
[1769987632818,15.33122081,100.5,100.44,4.17632996]
[1769987633003,15.33122081,100.49,100.44,4.17632996]
[1769987633202,15.33122081,100.53,100.47,4.17632996]
[1769987633408,9.9425726,100.58,100.5,4.17632996]
[1769987633713,15.33122081,100.56,100.5,19.79187391]
[1769987633916,3.47332497,100.59,100.53,4.17632996]
[1769987634122,15.33122081,100.58,100.52,4.17632996]
[1769987634320,17.64349496,100.59,100.48,4.17632996]
[1769987634524,17.64349496,100.59,100.5,19.50755077]
[1769987634710,15.33122081,100.54,100.48,19.50755077]
[1769987635029,9.94233446,100.58,100.5,14.12657871]
[1769987635723,4.27527085,100.56,100.49,9.95115787]
[1769987636118,15.33122081,100.53,100.49,9.95115787]
[1769987636320,15.33122081,100.5,100.46,5.36086188]
[1769987636503,23.83463225,100.47,100.38,4.17632996]
[1769987636704,4.22814059,100.45,100.36,4.17632996]
[1769987636913,15.33122081,100.37,100.3,4.17632996]
[1769987637116,15.33122081,100.34,100.31,4.17632996]
[1769987637319,15.33122081,100.37,100.32,4.17632996]
[1769987637517,9.96015936,100.4,100.34,4.17632996]
[1769987637706,4.27527085,100.39,100.31,4.17632996]
[1769987637906,15.83122081,100.36,100.31,4.17632996]
[1769987638309,0.5,100.36,100.31,4.17632996]
[1769987638606,15.33122081,100.34,100.3,4.17632996]
[1769987639024,25.29651679,100.35,100.3,4.17632996]
[1769987639217,15.33122081,100.35,100.3,14.14633107]
[1769987639407,15.33122081,100.31,100.27,4.17632996]
[1769987639607,4.27527085,100.35,100.27,4.17632996]
[1769987639608,15.33122081,100.32,100.27,14.14868195]
[1769987639818,15.33122081,100.33,100.28,14.148163]
[1769987640025,15.33122081,100.32,100.28,4.17632996]
[1769987640403,15.33122081,100.33,100.28,4.17632996]
[1769987640724,4.27527085,100.31,100.23,4.17632996]
[1769987640940,15.33122081,100.31,100.26,4.17632996]
[1769987641229,15.33122081,100.36,100.29,15.33122081]
[1769987641429,24.90685037,100.38,100.32,4.17632996]
[1769987641606,24.90685037,100.38,100.31,15.33122081]
[1769987641807,4.22814059,100.36,100.27,19.50755077]
[1769987642007,15.33122081,100.34,100.28,4.17632996]
[1769987642311,15.33122081,100.33,100.28,4.17632996]
[1769987642708,14.18929209,100.39,100.31,19.50755077]
[1769987642908,25.29066948,100.41,100.35,9.96512207]
[1769987643126,4.27527085,100.4,100.31,4.17632996]
[1769987643413,15.33122081,100.32,100.25,4.17632996]
[1769987643630,15.33122081,100.31,100.26,4.17632996]
[1769987643829,15.33122081,100.31,100.17,73.4262525]
[1769987643830,15.33122081,100.28,100.23,4.17632996]
[1769987644033,15.33122081,100.25,100.19,15.33122081]
[1769987644333,15.33122081,100.28,100.22,4.17632996]
[1769987644508,4.22814059,100.3,100.22,4.17632996]
[1769987644707,15.33122081,100.23,100.17,4.17632996]
[1769987644915,15.33122081,100.23,99.482,305.9]
[1769987644916,34.91620111,100.24,100.16,19.50755077]
[1769987645105,15.33122081,100.23,100.17,19.50755077]
[1769987645311,15.33122081,100.26,100.19,19.50755077]
[1769987645622,4.22814059,100.3,100.23,4.17632996]
[1769987645820,4.22814059,100.36,100.26,19.50755077]
[1769987646013,15.33122081,100.33,100.26,19.50755077]
[1769987646214,15.33122081,100.33,100.27,15.33122081]
[1769987646410,15.33122081,100.32,100.26,24.86841265]
[1769987646621,15.33122081,100.3,100.24,9.53719184]
[1769987646817,15.33122081,100.26,100.21,4.17632996]
[1769987647017,15.33122081,100.23,100.18,14.15807136]
[1769987647218,15.33122081,100.22,100.16,24.95857275]
[1769987647434,14.20346696,100.25,100.15,39.12362072]
[1769987647635,15.33122081,100.22,100.16,19.65957341]
[1769987647819,15.33122081,100.21,100.16,4.3283526]
[1769987648016,15.33122081,100.18,100.15,9.98494444]
[1769987648231,15.33122081,100.16,100.12,0.2]
[1769987648539,4.77527085,100.21,100.13,4.3283526]
[1769987648725,0.5,100.21,100.15,19.65957341]
[1769987648914,4.19932481,100.15,100.06,4.3283526]
[1769987649118,15.33122081,100.1,100.06,14.32201123]
[1769987649523,15.33122081,100.08,100.05,10.30925475]
[1769987649738,34.94154192,100.17,100.05,10.30925475]
[1769987649739,15.33122081,100.12,100.07,4.3283526]
[1769987650033,15.33122081,100.08,100.05,0.3143727]
[1769987650237,4.19932481,100.12,100.05,0.3143727]
[1769987650437,15.33122081,100.07,100.05,0.3143727]
[1769987650621,4.19932481,100.11,100.05,0.3143727]
[1769987650622,15.33122081,100.06,100.05,0.3143727]
[1769987650935,29.17807251,100.09,100.01,14.32714494]
[1769987651138,4.19932481,100.08,100.01,9.99879234]
[1769987651434,15.33122081,100.05,99.987,4.3283526]
[1769987651639,15.33122081,100.04,100.0,9.99978709]
[1769987651826,15.33122081,100.04,100.01,9.99877332]
[1769987652022,29.17255186,100.11,100.02,4.3283526]
[1769987652223,15.33122081,100.03,99.991,10.0008353]
[1769987652541,15.33122081,100.07,100.0,5.36086188]
[1769987652739,14.18761653,100.12,100.05,4.3283526]
[1769987652926,25.32103318,100.11,100.05,14.32306262]
[1769987653123,15.33122081,100.1,100.05,4.3283526]
[1769987653340,9.98801438,100.12,100.05,29.93882235]
[1769987653519,25.31923519,100.12,100.06,4.3283526]
[1769987653720,15.33122081,100.1,100.05,9.9949258]
[1769987653922,15.33122081,100.12,100.06,4.3283526]
[1769987654146,0.5,100.1,100.08,4.3283526]
[1769987654440,9.98203234,100.18,100.11,4.3283526]
[1769987654639,9.979044,100.21,100.14,15.33122081]
[1769987654827,15.33122081,100.2,100.14,4.3283526]
[1769987655026,15.33122081,100.2,100.14,29.64548544]
[1769987655233,15.33122081,100.19,100.14,4.3283526]
[1769987655539,15.33122081,100.15,100.08,8.60362345]
[1769987655836,15.33122081,100.17,100.11,4.3283526]
[1769987656041,15.33122081,100.17,100.12,9.98797133]
[1769987656248,15.33122081,100.18,100.13,14.31528239]
[1769987656539,15.33122081,100.18,100.13,4.3283526]
[1769987656747,25.31121583,100.21,100.14,29.6454623]
[1769987657040,15.33122081,100.2,100.14,14.31424149]
[1769987657239,9.97999502,100.21,100.14,9.97353762]
[1769987657445,15.33122081,100.19,100.14,4.3283526]